Cogmind - Beta 16 @@@ ROGUE MODE // 2025.11.09 @ 11:29:55 Player: laeb2 Result: Destroyed by N2-MYW(R) with Subdweller Shrapnel Launcher Performance ------------- Evolutions (0) 0 Regions Visited (2) 400 Robots Destroyed (19) 95 Value Destroyed (396) 396 Prototype IDs (0) 0 Alien Tech Used (0) 0 Bonus (-15) -15 TOTAL SCORE: 876 Bonus ------- Friendly Fire -15 Cogmind --------- Core Integrity 0/250 Matter 292/300 Energy 99/100 System Corruption 0% Temperature Cool (0) Movement Rolling (100) Location -10/Subcaves Parts ------- > --- POWER (1) -------- (None) > --- PROPULSION (2) --- Aluminum Leg Compact Wheel > --- UTILITY (2) ------ Small Storage Unit > --- WEAPON (2) ------- Subdweller Machine Gun > --- INVENTORY (8) ---- Aluminum Leg Compact Wheel Machine Analyzer Small Laser Assault Rifle Assault Rifle Assault Rifle Datajack Peak State ------------ > --- POWER ------------ Light Ion Engine > --- PROPULSION ------- Aluminum Leg Compact Wheel > --- UTILITY ---------- Small Storage Unit > --- WEAPON ----------- Subdweller Machine Gun Subdweller Machine Gun > --- INVENTORY -------- Aluminum Leg Compact Wheel Machine Analyzer Small Laser Assault Rifle Assault Rifle Assault Rifle Datajack [Rating: 9] Favorites ----------- Power Ion Engine Engine Ion Engine Propulsion Light Treads Treads Light Treads Leg Aluminum Leg Wheel Compact Wheel Utility Small Storage Unit Device Seismic Detector Storage Small Storage Unit Processor Signal Interpreter Weapon Assault Rifle Energy Gun Medium Laser Ballistic Gun Assault Rifle Launcher Grenade Launcher Build | -11 -10 -10 ------- Run | Yrd Mat Sub Slots Evolved . | . . . Power . | . . . Propulsion . | . . . Utility . | . . . Weapon . | . . . Parts Attached 21 | 8 4 9 Power 2 | 2 . . Engine 2 | 2 . . Core . | . . . Reactor . | . . . Propulsion 4 | 2 . 2 Treads 2 | 2 . . Leg 1 | . . 1 Wheel 1 | . . 1 Hover . | . . . Flight . | . . . Utility 4 | 1 2 1 Device 2 | . 1 1 Storage 1 | 1 . . Processor 1 | . 1 . Hackware . | . . . Protection . | . . . Artifact . | . . . Weapon 11 | 3 2 6 Energy Gun 2 | 2 . . Energy Cannon . | . . . Ballistic Gun 8 | 1 2 5 Ballistic Cannon . | . . . Launcher 1 | . . 1 Special Weapon . | . . . Impact Weapon . | . . . Slashing Weapon . | . . . Piercing Weapon . | . . . Special Melee Weapon . | . . . Unidentified Prototypes . | . . . Parts Lost 9 | . . 9 Power 2 | . . 2 Propulsion 2 | . . 2 Utility 1 | . . 1 Weapon 4 | . . 4 Highest Loss Streak 4 | . . 4 To Critical Strikes . | . . . Average Backups 7 | 4 7 7 Power . | . 1 . Propulsion 2 | 2 2 1 Utility . | . . . Weapon 3 | 1 3 3 Tool/Special . | . . . Unused Backups 7 | . 2 5 Power . | . . . Propulsion 3 | . 1 2 Utility 1 | . . 1 Weapon 2 | . 1 1 Tool/Special 1 | . . 1 Average Slot Usage (%) 93 | . 98 88 Engine 13 | . 14 13 Treads 20 | . 28 13 Leg 1 | . . 3 Wheel 2 | . . 5 Device 11 | . 12 9 Storage 14 | . 14 14 Energy Gun 1 | . 2 . Ballistic Gun 26 | . 25 26 Peak Build Rating 9 | 6 7 9 Average Rating 7 | 4 6 7 On Entrance 4 | . 6 7 Avg Prop Armor Cover (%) 9 | . . 9 Naked Turns . | . . . Heaviest Build 16 | 14 15 16 Greatest Support 40 | 40 40 40 Greatest Overweight (x) . | . . . Average Overweight (x) . | . . . Largest Inventory Capacity 8 | 8 8 8 Average Capacity 7 | 7 8 8 Most Carried 8 | 6 8 8 Average Carried 7 | 4 7 7 Final Capacity 8 | 8 8 8 Final Carried 8 | 6 8 8 Class Distribution -------------------- 88% | Mutant 11% | Scavenger-Mutant Dominant Class ---------------- Mutant | -10/Materials Mutant | -10/Subcaves Resources | -11 -10 -10 ----------- Run | Yrd Mat Sub Matter Collected 740 | 292 156 292 Remotely . | . . . Salvage Created 544 | 95 266 183 Parts 41 | 6 23 12 Haulers Intercepted 2 | . 2 . Recyclers Shooed . | . . . Parts Field Recycled . | . . . Retrieved Matter . | . . . Parts Self-Destructed 8 | . . 8 Prevented . | . . . Parts Restored . | . . . Kills | -11 -10 -10 ------- Run | Yrd Mat Sub Combat Hostiles Destroyed 14 | . 6 8 Guns 10 | . 6 4 AOE 4 | . . 4 Classes Destroyed 7 | 2 4 1 Tunneler 1 | 1 . . Hauler 2 | . 2 . Recycler 1 | 1 . . Operator 1 | . 1 . Swarmer 6 | . 3 3 Grunt 5 | . 3 2 Subdweller 3 | . . 3 Best Kill Streak 6 | 2 6 3 Combat Bots Only 3 | . 3 3 Max Kills in Single Turn 2 | 1 1 2 Gunslinging . | . . . Exploded 2 | . . 2 Melee . | . . . Uniques/NPCs Destroyed . | . . . Combat | -11 -10 -10 -------- Run | Yrd Mat Sub Hostile Shots Fired 75 | . 28 47 Missed 23 | . 8 15 Hits 52 | . 20 32 Projectile 52 | . 20 32 AOE 4 | . . 4 Critical Strikes 2 | . 1 1 Damage Taken 1204 | . 172 1032 Core 282 | . 77 205 Absorbed by Shields . | . . . Core Remaining (%) 100 | 100 . . Volleys Fired 53 | 2 22 29 Largest 2 | 2 2 2 Hottest 70 | 70 40 60 Shots Fired 103 | 4 44 55 Gun 94 | 4 44 46 Cannon . | . . . Launcher 9 | . . 9 Special . | . . . Kinetic 92 | 2 44 46 Thermal 2 | 2 . . Explosive 9 | . . 9 Electromagnetic . | . . . Robot Hit Streak 8 | 3 5 8 Robot Miss Streak 3 | 1 3 2 Penetration Max . | . . . Secondary Targets . | . . . Shots Hit Robots 59 | 3 25 31 Core Hits 33 | 3 15 15 Critical Kills . | . . . Critical Parts Destroyed . | . . . Critical Strikes . | . . . Melee Attacks . | . . . Impact . | . . . Slashing . | . . . Piercing . | . . . Sneak Attacks . | . . . Combat Hostiles . | . . . Follow-up Attacks . | . . . Damage Inflicted 1194 | 33 327 834 Guns 699 | 33 322 344 Cannons . | . . . Explosions 490 | . . 490 Melee . | . . . Ramming 5 | . 5 . Kinetic 674 | 8 322 344 Thermal 25 | 25 . . Explosive 490 | . . 490 Electromagnetic . | . . . Impact . | . . . Slashing . | . . . Piercing . | . . . Highest Corruption . | . . . Average Corruption . | . . . Corruption Purged . | . . . Corruption Blocked . | . . . Overload Shots . | . . . Overflow Damage 31 | . . 31 Projectiles . | . . . Explosions 31 | . . 31 Melee . | . . . Knockbacks . | . . . Impact . | . . . Kinetic . | . . . Secondary . | . . . Self-Inflicted Damage 46 | . . 46 Shots 2 | . . 2 Rammed 3 | . 3 . Targets Rammed 3 | . 3 . Kicked . | . . . Crushed . | . . . Highest Temperature 245 | 40 . 245 Average Temperature 94 | 20 . 134 Received Heat Transfer 416 | . 36 380 Siege Activations . | . . . Martial Activations . | . . . Shielding Activations . | . . . Robots Disrupted . | . . . Combat Hostiles . | . . . Robots Corrupted . | . . . Combat Hostiles . | . . . Parts Fried . | . . . Impact Corruptions . | . . . Robots Melted . | . . . Combat Hostiles . | . . . Parts Melted . | . . . Heat Transferred 74 | 74 . . Parts Sabotaged . | . . . Parts Stolen . | . . . Parts Stripped . | . . . Power Chain Reactions . | . . . Alert | -11 -10 -10 ------- Run | Yrd Mat Sub Maximum Alert Level . | . . . Low Security (%) 100 | 100 100 . Level 1 . | . . . Level 2 . | . . . Level 3 . | . . . Level 4 . | . . . Level 5 . | . . . High Security . | . . . Max Security . | . . . Peak Influence 123 | 10 123 . Initial . | . . . Average 17 | 1 20 . Influence Increases 319 | 10 189 120 Destroy 0b10 Robot/C 220 | . 120 100 Destroy 0b10 Robot/NC 25 | 10 15 . Destroy Leader 54 | . 34 20 Successful Hack 5 | . 5 . Lose Combat Pursuer 15 | . 15 . Influence Decreases 319 | 10 98 211 Entered New Map 44 | . . 44 Time Decay 255 | 10 98 147 Lost Part 20 | . . 20 Squads Dispatched 2 | . 2 . Investigation . | . . . Extermination . | . . . Reinforcement 2 | . 2 . Assault . | . . . Garrison . | . . . Intercept . | . . . Searches Triggered . | . . . Construction Impeded . | . . . Haulers Reinforced . | . . . Active Scanning Responses . | . . . Cargo Convoy Interrupts . | . . . Stealth | -11 -10 -10 --------- Run | Yrd Mat Sub Distress Signals . | . . . Communications Jammed . | . . . Distress Signals . | . . . Times Spotted 27 | . 14 13 Peak Tracking Total 5 | . 5 3 Tactical Retreats 2 | . 1 1 Traps | -11 -10 -10 ------- Run | Yrd Mat Sub Traps Triggered 5 | . . 5 Indirectly . | . . . Trap Hack Attempts . | . . . Triggered . | . . . Disarmed . | . . . Reprogrammed . | . . . Reused . | . . . Traps Extracted . | . . . Installed . | . . . Triggered . | . . . Machines | -11 -10 -10 ---------- Run | Yrd Mat Sub Machines Disabled . | . . . Max in Single Turn . | . . . Machines Repaired . | . . . Machines Dismantled . | . . . Machines Sabotaged . | . . . Overloaded Fab Kills . | . . . Hacking | -11 -10 -10 --------- Run | Yrd Mat Sub Machines Accessed 2 | . 1 1 Terminals 1 | . 1 . Fabricators . | . . . Repair Stations . | . . . Recycling Units . | . . . Scanalyzers . | . . . Garrison Access . | . . . Total Hacks 9 | . 5 4 Successful 5 | . 1 4 Failed 4 | . 4 . Catastrophic . | . . . Database Lockouts . | . . . Manual 4 | . 4 . Terminals 5 | . 5 . Fabricators . | . . . Repair Stations . | . . . Recycling Units . | . . . Scanalyzers . | . . . Garrison Access . | . . . Terminal Hacks 4 | . . 4 Record 4 | . . 4 Fabricator Hacks . | . . . Repair Station Hacks . | . . . Recycling Unit Hacks . | . . . Scanalyzer . | . . . Garrison Access Hacks . | . . . Unauthorized Hacks 1 | . 1 . Terminals 1 | . 1 . Botnet 1 | . 1 . Fabricators . | . . . Repair Stations . | . . . Recycling Units . | . . . Scanalyzers . | . . . Garrison Access . | . . . Data Cores Recovered . | . . . Used . | . . . Hacking Detections 1 | . 1 . Full Trace Events . | . . . Feedback Events . | . . . Feedback Blocked . | . . . Robot Schematics Acquired . | . . . Robots Built . | . . . Authchips . | . . . Time . | . . . Total Robot Build Rating . | . . . Part Schematics Acquired . | . . . Parts Built . | . . . Authchips . | . . . Time . | . . . Total Part Build Rating . | . . . Part Studies Acquired . | . . . Parts Repaired . | . . . Time . | . . . Parts Recycled . | . . . Recycled Matter . | . . . Retrieved Matter . | . . . Retrieved Components . | . . . Parts Scanalyzed . | . . . Part Schematics Acquired . | . . . Parts Damaged . | . . . Bothacking | -11 -10 -10 ------------ Run | Yrd Mat Sub Used RIF Installer . | . . . Robots Hacked . | . . . Non-combat . | . . . Combat . | . . . Robot Hacks Applied . | . . . Relay Couplers Released . | . . . Fabnet Peak Effective % . | . . . Robots Rewired . | . . . Allies Hacked . | . . . Hacks Repelled . | . . . Allies | -11 -10 -10 -------- Run | Yrd Mat Sub Total Allies . | . . . Largest Group . | . . . Highest-Rated Group . | . . . Highest-Rated Ally . | . . . Total Orders . | . . . Ally Attacks . | . . . Total Damage . | . . . Kills . | . . . Allies Corrupted . | . . . Allies Melted . | . . . Intel | -11 -10 -10 ------- Run | Yrd Mat Sub Active Infowar (turns) 1061 | . 627 434 Optics 165 | . . 165 Seismic 896 | . 627 269 Robot Analysis Total . | . . . Derelict Logs Recovered 1 | . . 1 Drone Launches . | . . . Drone Recoveries . | . . . Exploration | -11 -10 -10 ------------- Run | Yrd Mat Sub Turns Passed 1426 | 86 684 656 Spaces Moved 703 | 39 266 398 Core 11 | 11 . . Treads 479 | 28 266 185 Legs . | . . . Wheels 213 | . . 213 Hover . | . . . Flight . | . . . Fastest Speed 50 | 50 160 100 Average Speed 140 | 128 160 127 Slowest Speed 160 | 160 160 160 Overloaded Moves . | . . . Propulsion Burnouts . | . . . Robots Hopped . | . . . Potential Cave-ins . | . . . Cave-ins Triggered . | . . . Exploration Rate (%) 26 | 5 49 26 Regions Visited 2 Branch Regions 1 Pre-discovered Areas 2 | . . 2 Known Exits Taken . | . . . Unknown Exits Taken 2 | 1 1 . Scrap Searched . | . . . Spaces Dug . | . . . Terrain Destroyed 21 | . . 21 Melee . | . . . Projectile . | . . . AOE 21 | . . 21 Terrain Rammed . | . . . Walls Destroyed . | . . . Machines Disabled . | . . . Actions | -11 -10 -10 --------- Run | Yrd Mat Sub Total 1030 | 69 480 481 Wait 215 | 9 174 32 Move 701 | 38 265 398 Hop . | . . . Pick Up 24 | 11 6 7 Fast Attach 4 | 1 3 . Attach 14 | 5 1 8 Detach 1 | . . 1 Swap 8 | 3 . 5 Drop 7 | . 6 1 Fire 53 | 2 22 29 Melee . | . . . Ram . | . . . Kick . | . . . Crush 3 | . 3 . Escape Stasis . | . . . Rewire . | . . . Trap . | . . . Miscellaneous . | . . . Route ------- -11/Scrapyard -10/Materials (discovered 3 exits: [*Mat] / [*Min] / *Sub) -10/Subcaves (discovered 1 exit: [*Mat]) History --------- Turn | Location | Event 6 | -11/Scrapyard | Discovered new exit (range 15) 87 | -11/Scrapyard | Entered Materials 304 | -10/Materials | Build established: Mutant 389 | -10/Materials | Discovered new exit (range 8) 506 | -10/Materials | Discovered new exit (range 6) 744 | -10/Materials | Discovered new exit (range 11) 771 | -10/Materials | Entered Subcaves 772 | -10/Subcaves | Approached by a straggling Scientist 776 | -10/Subcaves | Learned location of Zion (-7) 811 | -10/Subcaves | Discovered new exit (range 9) 996 | -10/Subcaves | Core integrity fell below 50% 1078 | -10/Subcaves | Visited Clippyterm 1083 | -10/Subcaves | Learned Factory fabricator intel 1083 | -10/Subcaves | Learned location of Deep Caves (-7) 1183 | -10/Subcaves | Core integrity fell below 20% 1233 | -10/Subcaves | Shifting Twisted Machinery released Flamer 1243 | -10/Subcaves | Lost 4 parts (1p1n2w) 1354 | -10/Subcaves | A swath of the cavern ceiling suddenly collapsed 1371 | -10/Subcaves | A Subdweller sparked back to life 1371 | -10/Subcaves | A Subdweller sparked back to life 1371 | -10/Subcaves | A Subdweller sparked back to life 1427 | -10/Subcaves | Destroyed by N2-MYW(R) with Subdweller Shrapnel Launcher Last Messages --------------- 01240_ G-34 Mercenary destroyed. 01243_ Acquired 29 matter. 01245_ Acquired Aluminum Leg. 01248_ Subatomizers dissect the Sub. Optics. 01248_ Acquired Aluminum Leg. 01251_ Acquired Sml. Laser. 01258_ Acquired 40 matter. 01260_ Subatomizers dissect the Sub. Optics. 01267_ TO-XVM(R) emerges from the Twisted Machinery. A swath of the cavern ceiling suddenly collapses. 01371_ IN-V3B(R) creaks and sparks as it begins to move. 01371_ OF-M0R(R) creaks and sparks as it begins to move. 01371_ N2-MYW(R) creaks and sparks as it begins to move. 01421_ Lgt. Ion Engine destroyed. 01421_ Sub. Machine Gun destroyed. Map ----- +----------------------------------------------------+ | ????????????????????????? ??????????????????? | | ????????????????????????# ??????????????????? | | ????????????????????#########???????????????? | | ????????????????????#"" """"#???????????????? | | ??????????????????###""#""""#???????????????? | | ??????????????????#"# #"####???????????????? | | ?????????????????##"# ##""""##??????????????? | | ?????????????????##""###""### ??????????????? | | ???????????????#### ##?##"""#???????????????? | | ??????????????## "#???### #???????????????? | | ??????????????# #?####"##???????????????? | | ??????????????### ######"#????????????????? | | ???????????????# ###;##"##???????????????? | | ???????????????# ### ;;#"##???????????????? | | ???????????????## R### #""#???????????????? | | ???????????????#; ### R " #???????????????? | | ??????????????##; ####???????????????? | | ??????????????#; ##????#?????????????? | | ??????????????## ;#???? #?????????????? | | ??????????????#; #?? #?????????????? | | ?????????????## ### #?????????????? | | ?????????????# #?????????????? | | ?????????????# # #?????????????? | | ?????????????# " #????????????? | | ?????????????# ; # " "" #????????????? | | ?????????????# ;; @### #" " #????????????? | | ?????????????### #??## &#????????????? | | ???????????????# #?????? ""#????????????? | | ???????????????# ###??????##????????????? | | ??????????????## #????????????????????? | | ??????????????# #????????????????????? | | ??????????????## ##??????#######??????? | | ??????????????## #??????#"""""#??????? | | ??????????????# ##?????#""X""#??????? | | ?????????#"?###< # ##????#" "####???? | | ??????????# #" # #????### ### #??## | | ??????????# # ###????### ## #### | | ??????????# ##??????# # | | ??????????# #< ####??????## "" | | ??????????## ## ####???#### ## & ## "# | | ??????????? ??# ##### # # & ##### | | ??????????$???## ""# #? | | ?????????#?????# | | ??????????????## ## """ | | ??????????????# #### ## "#""# | | ??????????????## ## #??#### ###"# | | ???????????????## #### ##????# ###" | | ????????????????# #??# ##???# ##" | | ????????????????# ##??# #??? ### | | ???????????????# #????## ##??? "" | +----------------------------------------------------+ Best States ------------- Heat Dissipation 25 Energy Generation 10 Energy Capacity 250 Matter Stores 300 Matter Capacity 300 Sight Range 21 Terrain Scan Density 10 Evasion (%) 50 Recoil Reduction 2 Item Schematics ----------------- None Robot Schematics ------------------ None Fabricated ------------ Nothing Repaired ---------- Nothing Studied --------- None Alien Tech Used ----------------- None Achievements -------------- None Challenges ------------ None Game ------ Seed ExplosiveFortressField Manual? 0 Play Time 00:10:32 Cumulative 117.7 hours Start 2025.11.09 @ 11:21:12 End 2025.11.09 @ 11:29:55 Sessions 1 Manual Loads 0 Difficulty Rogue Special Mode None Game No. 139 Rogue 139 Adventurer 0 Explorer 0 Win Type - Total 2 Types 2/0/0/0/0/0/0/0/0/0 Lore% 70 Gallery% 61 Achievement% 41 Wizard Run 0 Options --------- Layout 1 ASCII 0 Keyboard 0 Movement Mouse Keybinds 0 Fullscreen 1 Font 32/SmallcapsGlow Map View 50x35 Zoom Use 0% Tactical HUD 1 Map Filters NONE Filters NONE Steam 1 RUN: c24288d5-6cfa-40ee-a3b7-0b019da00850